fUSD/lending_fUSD_20251231
["ID","MTS","AMOUNT","RATE_DAILY","PERIOD"]
[400145795,1767153031833,-500.0,0.00014706,2]
[400145796,1767153031843,-500.0,0.00014706,2]
[400145797,1767153031853,-500.0,0.00014706,2]
[400145798,1767153031863,-500.0,0.00014706,2]
[400145800,1767153031872,-500.0,0.00014706,2]
[400145802,1767153031882,-500.0,0.00014706,2]
[400145804,1767153031892,-500.0,0.00014706,2]
[400145806,1767153031901,-500.0,0.00014706,2]
[400145807,1767153031911,-500.0,0.00014706,2]
[400145808,1767153031921,-500.0,0.00014706,2]
[400145809,1767153031931,-500.0,0.00014706,2]
[400145810,1767153031941,-500.0,0.00014706,2]
[400145811,1767153031951,-500.0,0.00014706,2]
[400145813,1767153031961,-500.0,0.00014706,2]
[400145815,1767153031972,-500.0,0.00014706,2]
[400145816,1767153031982,-500.0,0.00014706,2]
[400145817,1767153031992,-500.0,0.00014706,2]
[400145818,1767153032002,-500.0,0.00014706,2]
[400145819,1767153032012,-500.0,0.00014706,2]
[400145820,1767153032021,-500.0,0.00014706,2]
[400145821,1767153032031,-200.0,0.00014706,2]
[400145822,1767153032041,-151.0,0.00014706,2]
[400145823,1767153032051,-151.0,0.00014706,2]
[400145824,1767153032061,-151.0,0.00014706,2]
[400145825,1767153032072,-151.0,0.00014706,2]
[400145826,1767153032082,-500.0,0.00014706,2]
[400145827,1767153032091,-151.0,0.00014706,2]
[400145828,1767153032101,-151.0,0.00014706,2]
[400145829,1767153032112,-151.0,0.00014706,2]
[400145830,1767153032122,-151.0,0.00014706,2]
[400145831,1767153032132,-151.0,0.00014706,2]
[400145832,1767153032142,-151.0,0.00014706,2]
[400145833,1767153032152,-151.0,0.00014706,2]
[400145834,1767153032163,-151.0,0.00014706,2]
[400145835,1767153032173,-151.0,0.00014706,2]
[400145836,1767153032183,-151.0,0.00014706,2]
[400145837,1767153032194,-151.0,0.00014706,2]
[400145838,1767153032204,-151.0,0.00014706,2]
[400145839,1767153032213,-151.0,0.00014706,2]
[400145840,1767153032223,-151.0,0.00014706,2]
[400145841,1767153032233,-151.0,0.00014706,2]
[400145842,1767153032243,-151.0,0.00014706,2]
[400145843,1767153032253,-151.0,0.00014706,2]
[400145844,1767153032263,-151.0,0.00014706,2]
[400145845,1767153032274,-151.0,0.00014706,2]
[400145846,1767153032284,-151.0,0.00014706,2]
[400145847,1767153032294,-151.0,0.00014706,2]
[400145848,1767153032303,-151.0,0.00014706,2]
[400145849,1767153032313,-151.0,0.00014706,2]
[400145850,1767153032324,-151.0,0.00014706,2]
[400145851,1767153032334,-151.0,0.00014706,2]
[400145852,1767153032343,-151.0,0.00014706,2]
[400145853,1767153032353,-156.51570594,0.00014706,2]
[400145854,1767153032363,-500.0,0.00014706,2]
[400145855,1767153032373,-226.85,0.00014706,2]
[400145856,1767153032382,-500.0,0.00014714,2]
[400145857,1767153032392,-500.0,0.00014714,2]
[400145858,1767153032401,-500.0,0.00014714,2]
[400145859,1767153032411,-500.0,0.00014714,2]
[400145860,1767153032421,-500.0,0.00014714,2]
[400145861,1767153032431,-500.0,0.00014714,2]
[400145862,1767153032440,-500.0,0.00014714,2]
[400145863,1767153032449,-500.0,0.00014714,2]
[400145864,1767153032459,-555.67560172,0.00014714,2]
[400145865,1767153032469,-500.0,0.00014714,2]
[400145866,1767153032479,-500.0,0.00014714,2]
[400145867,1767153032489,-500.0,0.00014714,2]
[400145868,1767153032499,-500.0,0.00014714,2]
[400145869,1767153032509,-400.0,0.00014714,2]
[400145870,1767153032519,-500.0,0.00014714,2]
[400145871,1767153032529,-500.0,0.00014714,2]
[400145872,1767153032538,-500.0,0.00014714,2]
[400145873,1767153032548,-500.0,0.00014714,2]
[400145874,1767153032558,-500.0,0.00014714,2]
[400145875,1767153032568,-500.0,0.00014714,2]
[400145876,1767153032578,-500.0,0.00014714,2]
[400145877,1767153032588,-453.25167257,0.00014714,2]
[400145878,1767153032598,-500.0,0.00014714,2]
[400145879,1767153032608,-405.21497134,0.00014714,2]
[400145880,1767153032618,-196.41454468,0.00014714,2]
[400145881,1767153032632,-500.0,0.00014714,2]
[400145882,1767153032642,-320.15811135,0.00014714,2]
[400145883,1767153032651,-173.89791824,0.00014714,2]
[400145884,1767153032661,-500.0,0.00014714,2]
[400145885,1767153032671,-500.0,0.00014714,2]
[400145886,1767153032681,-500.0,0.00014714,2]
[400145887,1767153032691,-500.0,0.00014714,2]
[400145888,1767153032700,-500.0,0.00014714,2]
[400145889,1767153032710,-500.0,0.00014714,2]
[400145890,1767153032721,-500.0,0.00014714,2]
[400145891,1767153032731,-500.0,0.00014714,2]
[400145892,1767153032740,-500.0,0.00014714,2]
[400145893,1767153032750,-500.0,0.00014714,2]
[400145894,1767153032760,-500.0,0.00014714,2]
[400145895,1767153032769,-500.0,0.00014714,2]
[400145896,1767153032779,-500.0,0.00014714,2]
[400145897,1767153032788,-500.0,0.00014714,2]
[400145898,1767153032799,-648.35390173,0.00014714,2]
[400145899,1767153032809,-438.327,0.00014714,2]
[400145900,1767153032819,-500.0,0.00014714,2]
[400145901,1767153032829,-193.237428,0.00014714,2]
[400145902,1767153032839,-500.0,0.00014714,2]
[400145903,1767153032849,-500.0,0.00014714,2]
[400145904,1767153032860,-500.0,0.00014714,2]
[400145905,1767153032870,-500.0,0.00014714,2]
[400145906,1767153032879,-4789.81772099,0.00014715,2]
[400145907,1767153032891,-47451.81093025,0.00014715,2]
[400145908,1767153032917,-500.0,0.00014714,2]
[400145909,1767153032927,-1085.92599187,0.00014715,2]
[400145910,1767153032939,-91624.96961579,0.00014715,2]
[400145911,1767153032951,-43145.54876945,0.00014715,2]
[400145912,1767153032963,-50217.17151452,0.00014715,2]
[400145913,1767153032975,-4768.95087844,0.00014715,2]
[400145919,1767153037603,-2500.0,0.00014615,2]
[400145920,1767153037613,-500.0,0.00014714,2]
[400145921,1767153037623,-450.00000001,0.00014714,2]
[400145922,1767153037633,-500.0,0.00014714,2]
[400145923,1767153037643,-362.66566897,0.00014714,2]
[400145924,1767153037655,-137.33433103,0.00014714,2]
[400145925,1767153037665,-500.0,0.00014714,2]
[400145926,1767153037675,-500.0,0.00014714,2]
[400145927,1767153037685,-500.0,0.00014714,2]
[400145928,1767153037695,-6103.88195888,0.00014715,2]
[400145929,1767153037706,-387.81872437,0.00014715,2]
[400145930,1767153037718,-185043.15425477,0.00014715,2]
[400145931,1767153037730,-451.14186505,0.00014715,2]
[400145932,1767153037742,-842.19516951,0.00014715,2]
[400145933,1767153037757,-3296.01226809,0.00014715,2]
[400145934,1767153037769,-5388.23074535,0.00014715,2]
[400145935,1767153037780,-72068.72199293,0.00014715,2]
[400145936,1767153037796,-1041.98658632,0.00014715,2]
[400145937,1767153037807,-3172.22600081,0.00014715,2]
[400145938,1767153037819,-3531.99658436,0.00014715,2]
[400145939,1767153037831,-12907.000002,0.00014715,2]
[400146102,1767153039656,-1422.28525192,0.00014715,2]
[400146104,1767153039668,-3036.0461649,0.00014715,2]
[400146110,1767153039711,-1455.83665154,0.00014715,2]
[400146112,1767153039723,-784.68059232,0.00014715,2]
[400146118,1767153039766,-766.51570007,0.00014715,2]
[400146120,1767153039777,-5816.52133088,0.00014715,2]
[400146122,1767153039788,-743.18660662,0.00014715,2]
[400146124,1767153039799,-1865.2,0.00014715,2]
[400146127,1767153039821,-1143.85880503,0.00014715,2]
[400146181,1767153040307,-1.7e-07,0.00014715,2]
[400146183,1767153040319,-2276.52850793,0.00014715,2]
[400146482,1767153043270,-925.00468108,0.00014715,2]
[400146737,1767153045673,-500.0,0.00014715,2]
[400146740,1767153045685,-3423.182228,0.00014715,2]
[400146748,1767153045832,-969.31963042,0.00014715,2]
[400146834,1767153476224,172.44,0.00011072,2]
[400146837,1767153512782,166.66,0.0001313,2]
[400146838,1767153512980,166.66,0.00013406,2]
[400146839,1767153529349,-166.66,0.00013683,2]
[400146840,1767153529372,-166.66,0.00013959,2]
[400146841,1767153529395,-332.2658813,0.00014167,2]
[400146842,1767153533259,-369.77900279,0.00014167,2]
[400146843,1767153534824,-175.92842549,0.00014167,2]
[400146844,1767153536479,-173.62906968,0.00014167,2]
[400146845,1767153539107,-187.76251217,0.00014167,2]
[400146846,1767153540733,-203.44747085,0.00014167,2]
[400146848,1767153544004,-190.20455927,0.00014167,2]
[400146849,1767153547704,-300.0,0.00014167,2]
[400146850,1767153549309,-182.34796988,0.00014167,2]
[400146851,1767153551806,-410.58755797,0.00014167,2]
[400146852,1767153553854,-324.5128275,0.00014167,2]
[400146853,1767153555288,-197.4140413,0.00014167,2]
[400146854,1767153558040,-225.32135981,0.00014167,2]
[400146855,1767153560592,-153.72,0.00014167,2]
[400146856,1767153562614,-446.74997068,0.00014167,2]
[400146857,1767153567016,-197.84231559,0.00014167,2]
[400146858,1767153568562,-223.7392808,0.00014167,2]
[400146859,1767153570713,-167.02443224,0.00014167,2]
[400146860,1767153572899,-178.24211257,0.00014096,2]
[400146861,1767153577292,-240.27207393,0.00014096,2]
[400146862,1767153578810,-207.4122511,0.00014096,2]
[400146863,1767153581581,-217.39124651,0.00014096,2]
[400146864,1767153583106,-336.01279608,0.00014096,2]
[400146865,1767153584815,-171.15624172,0.00014096,2]
[400146866,1767153586181,-166.66,0.00014096,2]
[400146867,1767153587709,-218.40995586,0.00014096,2]
[400146868,1767153589858,-171.47555375,0.00014096,2]
[400146869,1767153591344,-49.11584148,0.00014096,2]
[400146870,1767153591368,-193.66464589,0.00014167,2]
[400146871,1767153592939,-286.11407827,0.00014167,2]
[400146872,1767153595220,-342.9528579,0.00014167,2]
[400146873,1767153596943,-215.00547981,0.00014167,2]
[400146874,1767153600304,-355.92758402,0.00014167,2]
[400146883,1767153649872,-250.0,0.00014095,2]
[400146884,1767153653138,-403.23602683,0.00014095,2]
[400146885,1767153655074,-319.47994353,0.00014095,2]
[400146888,1767153739417,-166.66,0.00013601,2]
[400146891,1767153797616,1153.60442,0.00013533,2]
[400146892,1767153798542,-33.34,0.00013601,2]
[400146893,1767153798566,-127.32260409,0.00013857,2]
[400146894,1767153801855,-155.03043116,0.00013857,2]
[400146895,1767153804560,-156.79467377,0.00013857,2]
[400146896,1767153806114,-152.10127393,0.00013857,2]
[400146897,1767153809095,-110.85604286,0.00013857,2]
[400146898,1767153809120,-84.14395714,0.00013857,2]
[400146900,1767153811689,-474.15857329,0.00013787,2]
[400146901,1767153814906,-200.0,0.00013787,2]
[400146902,1767153816521,-174.56802001,0.00013787,2]
[400146903,1767153818143,-179.3334067,0.00013787,2]
[400146904,1767153818182,-27.65872573,0.00013857,2]
[400146908,1767153905533,1600.0,0.00013536,2]
[400146909,1767153907621,594.422334,7.945e-05,2]
[400146911,1767153919380,-211.84096424,0.00013857,2]
[400146912,1767153919403,-40.11593533,0.00013985,2]
[400146913,1767153949974,-236.00361132,0.00013914,2]
[400146915,1767153990236,1423.923246,0.00013513,2]
[400146916,1767153990259,6262.046754,0.00013513,2]
[400146917,1767153993908,-23.18970268,0.00013914,2]
[400146918,1767153993931,-128.1973258,0.00013985,2]
[400146921,1767154028511,3419.73454008,7.945e-05,2]
[400146922,1767154028535,2234.37216492,7.945e-05,2]
[400146926,1767154067811,159.87,0.00013507,2]
[400146931,1767154099447,-200.0,0.00013699,2]
[400146932,1767154099470,-47.14899331,0.0001377,2]
[400146933,1767154100915,-147.85100669,0.0001377,2]
[400146934,1767154100945,-250.0,0.00013842,2]
[400146935,1767154100968,-93.10001502,0.00013957,2]
[400146937,1767154129419,-168.42970965,0.0001355,2]
[400146938,1767154134801,-169.89062818,0.0001355,2]
[400146940,1767154140585,-156.587,0.0001355,2]
[400146942,1767154142833,-150.0,0.00013549,2]
[400146943,1767154142856,-93.22392147,0.0001355,2]
[400146944,1767154144300,-279.47022184,0.0001355,2]
[400146946,1767154150319,-427.51915905,0.0001355,2]
[400146947,1767154153160,-395.82986664,0.0001355,2]
[400146948,1767154156783,-151.0,0.00013547,2]
[400146949,1767154156809,-115.37104203,0.0001355,2]
[400146956,1767154160514,-158.26933632,0.0001355,2]
[400146957,1767154165228,-163.944123,0.0001355,2]
[400146958,1767154169359,-209.54901978,0.0001355,2]
[400146961,1767154172425,-165.8939225,0.0001355,2]
[400146962,1767154173815,-152.7266571,0.0001355,2]
[400146964,1767154177573,-202.16280091,0.0001355,2]
[400146965,1767154180599,-254.28414398,0.0001355,2]
[400146966,1767154182776,-231.76870841,0.0001355,2]
[400146967,1767154188851,-162.41595992,0.0001355,2]
[400146968,1767154190457,-187.44435304,0.0001355,2]
[400146970,1767154193697,-300.0,0.0001355,2]
[400146971,1767154196820,-302.53539732,0.0001355,2]
[400146972,1767154200557,-282.90204108,0.0001355,2]
[400146974,1767154206449,-158.06859676,0.00013549,2]
[400146993,1767154209799,-237.68370971,0.00013549,2]
[400146995,1767154214103,-297.90868828,0.00013549,2]
[400146996,1767154217471,-235.73486716,0.00013549,2]
[400146997,1767154221674,-247.48230005,0.00013549,2]
[400146998,1767154224249,-23.12183804,0.00013549,2]
[400146999,1767154224274,-300.0,0.00013549,2]
[400147000,1767154230152,-187.37125816,0.00013549,2]
[400147001,1767154231772,-73.62874184,0.00013549,2]
[400147002,1767154231800,-176.37125816,0.0001355,2]
[400147007,1767154232000,-16.64784024,0.0001355,2]
[400147008,1767154232011,-1097.67571368,0.0001355,2]
[400147009,1767154232024,-3145.62502986,0.0001355,2]
[400147010,1767154232038,-22722.09,0.0001355,2]
[400147011,1767154232056,-868.46461215,0.0001355,2]
[400147012,1767154232069,-1981.72993631,0.0001355,2]
[400147013,1767154232085,-415.99999997,0.0001355,2]
[400147014,1767154232177,-485.76562377,0.0001355,2]
[400147015,1767154232191,-101936.17107204,0.0001355,2]
[400147016,1767154232203,-327.71597036,0.00013652,2]
[400147017,1767154232215,-250.0,0.00013753,2]
[400147018,1767154232226,-101.89998498,0.00013957,2]
[400147019,1767154232238,-26.68673887,0.00013985,2]
[400147020,1767154232248,-250.0,0.00014043,2]
[400147021,1767154232259,-1200.0,0.00014166,2]
[400147022,1767154232270,-462.05161933,0.00014167,2]
[400147023,1767154232281,-151.0,0.00014167,2]
[400147024,1767154232293,-18981.41552653,0.00014167,2]
[400147025,1767154232304,-166.66,0.00014236,2]
[400147026,1767154232315,-134.3237105,0.00014342,2]
[400147027,1767154232328,-126.3714895,0.00014342,2]
[400147028,1767154232339,-502.0,0.00014356,2]
[400147029,1767154232350,-150.0,0.000144,2]
[400147030,1767154232361,-150.0,0.000144,2]
[400147031,1767154232372,-150.0,0.000144,2]
[400147032,1767154232383,-150.0,0.000144,2]
[400147033,1767154232394,-150.44068196,0.000144,2]
[400147034,1767154232404,-150.0,0.000144,2]
[400147035,1767154232416,-150.0,0.000144,2]
[400147036,1767154232426,-150.0,0.000144,2]
[400147037,1767154232437,-150.0,0.000144,2]
[400147038,1767154232447,-150.0,0.000144,2]
[400147039,1767154232459,-101.76188192,0.00014415,2]
[400147040,1767154232473,-4638.56918259,0.00014415,2]
[400147041,1767154232483,-1289.996,0.00014443,2]
[400147042,1767154232494,-174.04,0.00014443,2]
[400147043,1767154232506,-2566.76528771,0.00014443,2]
[400147045,1767154232517,-196.15688835,0.00014443,2]
[400147047,1767154232529,-4370.17636254,0.00014443,2]
[400147048,1767154232540,-171.03,0.000145,2]
[400147049,1767154232552,-171.03,0.000145,2]
[400147050,1767154232569,-178.74,0.000145,2]
[400147051,1767154232580,-171.03,0.000145,2]
[400147052,1767154232591,-171.03,0.000145,2]
[400147053,1767154232602,-356.98,0.000145,2]
[400147054,1767154232614,-171.03,0.000145,2]
[400147056,1767154232625,-171.03,0.000145,2]
[400147058,1767154232636,-1004.14383028,0.00014505,2]
[400147060,1767154232647,-200.0,0.00014506,2]
[400147062,1767154232658,-500.0,0.00014506,2]
[400147063,1767154232669,-500.0,0.00014506,2]
[400147064,1767154232680,-500.0,0.00014506,2]
[400147065,1767154232691,-500.0,0.00014506,2]
[400147066,1767154232702,-151.0,0.00014506,2]
[400147067,1767154232983,-500.0,0.00014506,2]
[400147068,1767154232996,-151.0,0.00014506,2]
[400147069,1767154233007,-500.0,0.00014506,2]
[400147070,1767154233018,-151.0,0.00014506,2]
[400147071,1767154233029,-500.0,0.00014506,2]
[400147072,1767154233040,-236.7016539,0.00014506,2]
[400147073,1767154233052,-500.0,0.00014506,2]
[400147074,1767154233063,-500.0,0.00014506,2]
[400147075,1767154233074,-500.0,0.00014506,2]
[400147076,1767154233085,-500.0,0.00014506,2]
[400147077,1767154233096,-500.0,0.00014506,2]
[400147078,1767154233107,-500.0,0.00014506,2]
[400147079,1767154233118,-500.0,0.00014506,2]
[400147080,1767154233129,-500.0,0.00014506,2]
[400147081,1767154233140,-500.0,0.00014506,2]
[400147082,1767154233151,-500.0,0.00014506,2]
[400147083,1767154233164,-500.0,0.00014506,2]
[400147084,1767154233175,-200.0,0.00014506,2]
[400147085,1767154233185,-500.0,0.00014506,2]
[400147086,1767154233195,-500.0,0.00014506,2]
[400147087,1767154233207,-500.0,0.00014506,2]
[400147088,1767154233218,-500.0,0.00014506,2]
[400147089,1767154233230,-151.0,0.00014506,2]
[400147090,1767154233246,-151.0,0.00014506,2]
[400147091,1767154233257,-151.0,0.00014506,2]
[400147092,1767154233268,-151.0,0.00014506,2]
[400147093,1767154233279,-151.0,0.00014506,2]
[400147094,1767154233291,-151.0,0.00014506,2]
[400147095,1767154233303,-151.0,0.00014506,2]
[400147096,1767154233314,-200.0,0.00014506,2]
[400147097,1767154233326,-151.0,0.00014506,2]
[400147098,1767154233337,-151.0,0.00014506,2]
[400147099,1767154233349,-500.0,0.00014506,2]
[400147100,1767154233360,-151.0,0.00014506,2]
[400147101,1767154233371,-151.0,0.00014506,2]
[400147102,1767154233384,-301.03139788,0.00014506,2]
[400147103,1767154233396,-601.45,0.00014506,2]
[400147104,1767154233407,-151.0,0.0001451,2]
[400147105,1767154233419,-166.66,0.00014512,2]
[400147106,1767154233431,-494.3392313,0.00014513,2]
[400147107,1767154233442,-500.0,0.00014513,2]
[400147108,1767154233453,-500.0,0.00014513,2]
[400147109,1767154233465,-500.0,0.00014513,2]
[400147110,1767154233477,-500.0,0.00014513,2]
[400147111,1767154233488,-500.0,0.00014513,2]
[400147112,1767154233499,-500.0,0.00014513,2]
[400147113,1767154233510,-500.0,0.00014513,2]
[400147114,1767154233521,-500.0,0.00014513,2]
[400147115,1767154233532,-500.0,0.00014513,2]
[400147116,1767154233543,-500.0,0.00014513,2]
[400147117,1767154233555,-500.0,0.00014513,2]
[400147118,1767154233565,-514.2348058,0.00014513,2]
[400147119,1767154233577,-500.0,0.00014513,2]
[400147120,1767154233588,-500.0,0.00014513,2]
[400147121,1767154233600,-500.0,0.00014513,2]
[400147122,1767154233612,-500.0,0.00014513,2]
[400147123,1767154233622,-500.0,0.00014513,2]
[400147124,1767154233635,-500.0,0.00014513,2]
[400147125,1767154233651,-500.0,0.00014513,2]
[400147126,1767154233663,-500.0,0.00014513,2]
[400147127,1767154233679,-645.79238712,0.00014513,2]
[400147128,1767154233693,-500.0,0.00014513,2]
[400147129,1767154233704,-223.38638999,0.00014513,2]
[400147130,1767154233714,-500.0,0.00014513,2]
[400147131,1767154233724,-500.0,0.00014514,2]
[400147132,1767154233735,-201.29661966,0.00014514,2]
[400147133,1767154233745,-377.10756546,0.00014514,2]
[400147134,1767154233755,-500.0,0.00014514,2]
[400147135,1767154233765,-500.0,0.00014514,2]
[400147136,1767154233776,-500.0,0.00014514,2]
[400147137,1767154233787,-500.0,0.00014514,2]
[400147138,1767154233799,-500.0,0.00014514,2]
[400147139,1767154233811,-500.0,0.00014514,2]
[400147140,1767154233822,-500.0,0.00014514,2]
[400147141,1767154233833,-500.0,0.00014514,2]
[400147142,1767154233844,-500.0,0.00014514,2]
[400147143,1767154233855,-500.0,0.00014514,2]
[400147144,1767154233865,-500.0,0.00014514,2]
[400147145,1767154233880,-500.0,0.00014514,2]
[400147146,1767154233891,-500.0,0.00014514,2]
[400147147,1767154233902,-500.0,0.00014514,2]
[400147148,1767154233913,-500.0,0.00014514,2]
[400147149,1767154233924,-500.0,0.00014514,2]
[400147150,1767154233935,-500.0,0.00014514,2]
[400147151,1767154233945,-500.0,0.00014514,2]
[400147152,1767154233955,-500.0,0.00014514,2]
[400147153,1767154233965,-500.0,0.00014514,2]
[400147154,1767154233975,-500.0,0.00014514,2]
[400147155,1767154233985,-500.0,0.00014514,2]
[400147156,1767154233995,-500.0,0.00014514,2]
[400147157,1767154234005,-500.0,0.00014514,2]
[400147158,1767154234015,-492.52387172,0.00014514,2]
[400147159,1767154234029,-7.47612828,0.00014514,2]
[400147160,1767154234039,-500.0,0.00014514,2]
[400147161,1767154234049,-500.0,0.00014514,2]
[400147162,1767154234061,-500.0,0.00014514,2]
[400147163,1767154234073,-500.0,0.00014514,2]
[400147164,1767154234088,-500.0,0.00014514,2]
[400147165,1767154234100,-500.0,0.00014514,2]
[400147166,1767154234111,-500.0,0.00014514,2]
[400147167,1767154234122,-500.0,0.00014514,2]
[400147168,1767154234132,-500.0,0.00014514,2]
[400147169,1767154234144,-500.0,0.00014514,2]
[400147170,1767154234157,-500.0,0.00014514,2]
[400147171,1767154234168,-500.0,0.00014514,2]
[400147172,1767154234179,-500.0,0.00014514,2]
[400147173,1767154234190,-500.0,0.00014514,2]
[400147174,1767154234201,-500.0,0.00014514,2]
[400147175,1767154234212,-500.0,0.00014514,2]
[400147176,1767154234223,-500.0,0.00014514,2]
[400147177,1767154234236,-500.0,0.00014514,2]
[400147178,1767154234247,-500.0,0.00014514,2]
[400147179,1767154234258,-500.0,0.00014514,2]
[400147180,1767154234269,-500.0,0.00014514,2]
[400147181,1767154234281,-266.03513621,0.00014514,2]
[400147182,1767154234292,-500.0,0.00014514,2]
[400147183,1767154234303,-500.0,0.00014514,2]
[400147184,1767154234314,-500.0,0.00014514,2]
[400147185,1767154234325,-500.0,0.00014514,2]
[400147186,1767154234336,-500.0,0.00014514,2]
[400147187,1767154234347,-500.0,0.00014514,2]
[400147188,1767154234358,-500.0,0.00014514,2]
[400147189,1767154234369,-500.0,0.00014514,2]
[400147190,1767154234379,-500.0,0.00014514,2]
[400147191,1767154234390,-500.0,0.00014514,2]
[400147192,1767154234400,-500.0,0.00014514,2]
[400147193,1767154234411,-500.0,0.00014514,2]
[400147194,1767154234422,-500.0,0.00014514,2]
[400147195,1767154234432,-500.0,0.00014514,2]
[400147196,1767154234443,-500.0,0.00014514,2]
[400147197,1767154234454,-500.0,0.00014514,2]
[400147198,1767154234466,-500.0,0.00014514,2]
[400147199,1767154234476,-500.0,0.00014514,2]
[400147200,1767154234488,-500.0,0.00014514,2]
[400147201,1767154234511,-500.0,0.00014514,2]
[400147202,1767154234526,-500.0,0.00014514,2]
[400147203,1767154234539,-500.0,0.00014514,2]
[400147204,1767154234551,-500.0,0.00014514,2]
[400147205,1767154234563,-500.0,0.00014514,2]
[400147206,1767154234574,-500.0,0.00014514,2]
[400147207,1767154234587,-500.0,0.00014514,2]
[400147208,1767154234599,-500.0,0.00014514,2]
[400147209,1767154234611,-500.0,0.00014514,2]
[400147210,1767154234623,-500.0,0.00014514,2]
[400147211,1767154234634,-500.0,0.00014514,2]
[400147212,1767154234646,-350.0,0.00014514,2]
[400147213,1767154234656,-500.0,0.00014514,2]
[400147214,1767154234667,-500.0,0.00014514,2]
[400147215,1767154234678,-500.0,0.00014514,2]
[400147216,1767154234692,-500.0,0.00014514,2]
[400147217,1767154234703,-500.0,0.00014514,2]
[400147218,1767154234714,-500.0,0.00014514,2]
[400147219,1767154234725,-500.0,0.00014514,2]
[400147220,1767154234736,-500.0,0.00014514,2]
[400147221,1767154234747,-500.0,0.00014514,2]
[400147222,1767154234759,-500.0,0.00014514,2]
[400147223,1767154234770,-150.0,0.00014514,2]
[400147224,1767154234780,-156.53465619,0.00014514,2]
[400147225,1767154234792,-999.0,0.00014543,3]
[400147226,1767154234803,-660.35,0.00014558,2]
[400147227,1767154234814,-1175.72159365,0.0001457,2]
[400147228,1767154234825,-171.03,0.000146,2]
[400147229,1767154234837,-171.03,0.000146,2]
[400147230,1767154234848,-194.82,0.000146,2]
[400147231,1767154234859,-178.74,0.000146,2]
[400147232,1767154234870,-171.03,0.000146,2]
[400147233,1767154234882,-171.03,0.000146,2]
[400147234,1767154234892,-178.74,0.000146,2]
[400147235,1767154234902,-151.21,0.000146,2]
[400147236,1767154234913,-465.64,0.000146,2]
[400147237,1767154234924,-234.89,0.000146,2]
[400147238,1767154234935,-171.03,0.000146,2]
[400147239,1767154234945,-171.03,0.000146,2]
[400147240,1767154234956,-178.74,0.000146,2]
[400147241,1767154234968,-481.83,0.000146,2]
[400147242,1767154234979,-465.64,0.000146,2]
[400147243,1767154234989,-171.03,0.000146,2]
[400147244,1767154235000,-171.03,0.000146,2]
[400147245,1767154235010,-481.83,0.000146,2]
[400147246,1767154235021,-171.03,0.000146,2]
[400147247,1767154235031,-465.64,0.000146,2]
[400147248,1767154235042,-481.83,0.000146,2]
[400147249,1767154235053,-178.74,0.000146,2]
[400147250,1767154235064,-151.52,0.000146,2]
[400147251,1767154235075,-178.74,0.000146,2]
[400147252,1767154235086,-171.03,0.000146,2]
[400147253,1767154235096,-32807.48629808,0.00014615,2]
[400147254,1767154235117,-721.57810192,0.00014615,2]
[400147255,1767154235128,-200.0,0.00014644,2]
[400147256,1767154235138,-207.4,0.00014644,2]
[400147257,1767154235149,-215.0738,0.00014644,2]
[400147258,1767154235162,-223.0315306,0.00014644,2]